{"text_format":"3","workbook":"xlsx","n_sheets":2,"sheets":["Inizio","Scheda attività annuale"],"not_rendered":{"defined_names":2},"read":"whole","date_system":"1900"}

{"sheet":"Inizio","index":0,"n_rows":8,"n_cols":2,"rows_kept":8}
[null,"Informazioni su questo modello"]
[null,"Tenere traccia delle ore giornaliere, settimanali, mensili e annuali in questa scheda del dipendente."]
[null,"Immettere le informazioni di base come nome del dipendente, nome del manager, indirizzo e-mail e numero di telefono. "]
[null,"Aggiungere le ore a ciascuna tabella del mese. Registrare le ore normali e le ore di straordinario in colonne diverse per ogni giorno della settimana di ciascuna settimana. "]
[null,"Le ore di lavoro totali, le ore normali e le ore di straordinario vengono calcolate automaticamente. "]
[null,"Note:  "]
[null,"Altre istruzioni sono state fornite nella colonna A nel foglio di lavoro SCHEDA ATTIVITÀ ANNUALE. Questo testo è stato nascosto intenzionalmente. Per rimuovere il testo, seleziona la colonna A, quindi scegli ELIMINA. Per visualizzare il testo, selezionare la colonna A, quindi modificare il colore del carattere. "]
[null,"Per altre informazioni sulle tabelle, premere MAIUSC, quindi F10 in una tabella, selezionare l'opzione TABELLA, quindi selezionare TESTO ALTERNATIVO."]

{"sheet":"Scheda attività annuale","index":1,"n_rows":138,"n_cols":15,"rows_kept":138,"merged":[[1,1,22,1],[1,5,1,6],[2,5,2,6],[3,5,3,6]]}
[]
[null,"SCHEDA ORARIO DEL DIPENDENTE",null,null,"Nome dipendente:","Mattia Trentini",null,"Ore normali:",null,"Ore di straordinario:",null,"Totale",null,"Manager:"]
[{"$nulls":4},"E-mail:","mattia@example.com",null,{"$f":"Ore_normali","v":400},null,{"$f":"Ore_di_straordinario","v":2},null,{"$f":"Ore_normali+Ore_di_straordinario","v":402},null,"Pupetta Costa"]
[{"$nulls":4},"Telefono:","(212) 555-0123"]
[]
[]
[" ",{"$nulls":3},"Gennaio, febbraio, marzo   |   Scheda orario del dipendente: giornaliera, settimanale, mensile, annuale"]
[" ",{"$nulls":3},"Gennaio","Settimana 1","Straordinario","Settimana 2","Straordinario  ","Settimana 3","Straordinario   ","Settimana 4","Straordinario    ","Settimana 5","Straordinario     "]
[" ",{"$nulls":3},"Lunedì",{"v":8,"d":"8.0"},null,{"v":8,"d":"8.0"},null,{"v":8,"d":"8.0"},null,{"v":8,"d":"8.0"},null,{"v":8,"d":"8.0"}]
[" ",{"$nulls":3},"Martedì",{"v":8,"d":"8.0"},{"v":2,"d":"2.0"},{"v":8,"d":"8.0"},null,{"v":8,"d":"8.0"},null,{"v":8,"d":"8.0"},null,{"v":8,"d":"8.0"}]
[" ",{"$nulls":3},"Mercoledì",{"v":8,"d":"8.0"},null,{"v":8,"d":"8.0"},null,{"v":8,"d":"8.0"},null,{"v":8,"d":"8.0"},null,{"v":8,"d":"8.0"}]
[{"$nulls":4},"Giovedì",{"v":8,"d":"8.0"},null,{"v":8,"d":"8.0"},null,{"v":8,"d":"8.0"},null,{"v":8,"d":"8.0"},null,{"v":8,"d":"8.0"}]
[{"$nulls":4},"Venerdì",{"v":8,"d":"8.0"},null,{"v":8,"d":"8.0"},null,{"v":8,"d":"8.0"},null,{"v":8,"d":"8.0"},null,{"v":8,"d":"8.0"}]
[{"$nulls":4},"Sabato"]
[" ",{"$nulls":3},"Domenica"]
[" ",{"$nulls":3},"Totale ore settimanali",{"$f":"SUM(F9:F15)","v":{"v":40,"d":"40.0"}},{"v":2,"d":"2.0"},{"v":40,"d":"40.0"},{"v":0,"d":"0.0"},{"v":40,"d":"40.0"},{"v":0,"d":"0.0"},{"v":40,"d":"40.0"},{"v":0,"d":"0.0"},{"v":40,"d":"40.0"},{"v":0,"d":"0.0"}]
[" ",{"$nulls":3},{"$f":"TEXT(DATEVALUE(Gennaio[[#Headers],[Gennaio]]&\"  \"&YEAR(TODAY())),\"mmm.\")&\" Totale: Ore normali\"","v":"gen. Totale: Ore normali"},{"$f":"SUM(Gennaio[Settimana 1],Gennaio[Settimana 2],Gennaio[Settimana 3],Gennaio[Settimana 4],Gennaio[Settimana 5])","v":{"v":200,"d":"200.0"}},{"$nulls":5},{"$f":"TEXT(DATEVALUE(Gennaio[[#Headers],[Gennaio]]&\"  \"&YEAR(TODAY())),\"mmm.\")&\" totale: Straordinario\"","v":"gen. totale: Straordinario"},null,{"$f":"SUM(Gennaio[Straordinario],Gennaio[[Straordinario  ]],Gennaio[[Straordinario   ]],Gennaio[[Straordinario    ]],Gennaio[[Straordinario     ]])","v":{"v":2,"d":"2.0"}}]
[]
[" ",{"$nulls":3},"Febbraio","Settimana 1","Straordinario","Settimana 2","Straordinario  ","Settimana 3","Straordinario   ","Settimana 4","Straordinario    ","Settimana 5","Straordinario     "]
[{"$nulls":4},"Lunedì",{"v":8,"d":"8.0"},null,{"v":8,"d":"8.0"},null,{"v":8,"d":"8.0"},null,{"v":8,"d":"8.0"},null,{"v":8,"d":"8.0"}]
[{"$nulls":4},"Martedì",{"v":8,"d":"8.0"},{"v":2,"d":"2.0"},{"v":8,"d":"8.0"},null,{"v":8,"d":"8.0"},null,{"v":8,"d":"8.0"},null,{"v":8,"d":"8.0"}]
[{"$nulls":4},"Mercoledì",{"v":8,"d":"8.0"},null,{"v":8,"d":"8.0"},null,{"v":8,"d":"8.0"},null,{"v":8,"d":"8.0"},null,{"v":8,"d":"8.0"}]
[{"$nulls":4},"Giovedì",{"v":8,"d":"8.0"},null,{"v":8,"d":"8.0"},null,{"v":8,"d":"8.0"},3.5,{"v":8,"d":"8.0"},null,{"v":8,"d":"8.0"}]
[{"$nulls":4},"Venerdì",{"v":8,"d":"8.0"},null,{"v":8,"d":"8.0"},null,{"v":8,"d":"8.0"},null,{"v":8,"d":"8.0"},null,{"v":8,"d":"8.0"}]
[{"$nulls":4},"Sabato"]
[{"$nulls":4},"Domenica"]
[{"$nulls":4},"Totale ore settimanali",{"$f":"SUM(F20:F26)","v":{"v":40,"d":"40.0"}},{"v":2,"d":"2.0"},{"v":40,"d":"40.0"},{"v":0,"d":"0.0"},{"v":40,"d":"40.0"},3.5,{"v":40,"d":"40.0"},{"v":0,"d":"0.0"},{"v":40,"d":"40.0"},{"v":0,"d":"0.0"}]
[" ",{"$nulls":3},{"$f":"TEXT(DATEVALUE(Febbraio[[#Headers],[Febbraio]]&\"  \"&YEAR(TODAY())),\"mmm.\")&\" totale: Ore normali\"","v":"feb. totale: Ore normali"},{"$f":"SUM(Febbraio[Settimana 1],Febbraio[Settimana 2],Febbraio[Settimana 3],Febbraio[Settimana 4],Febbraio[Settimana 5])","v":{"v":200,"d":"200.0"}},{"$nulls":5},{"$f":"TEXT(DATEVALUE(Febbraio[[#Headers],[Febbraio]]&\" \"&YEAR(TODAY())),\"mmm.\")&\" totale: Straordinario\"","v":"feb. totale: Straordinario"},null,{"$f":"SUM(Febbraio[Straordinario],Febbraio[[Straordinario  ]],Febbraio[[Straordinario   ]],Febbraio[[Straordinario    ]],Febbraio[[Straordinario     ]])","v":5.5}]
[]
[" ",{"$nulls":3},"Marzo","Settimana 1","Straordinario","Settimana 2","Straordinario  ","Settimana 3","Straordinario ","Settimana 4","Straordinario    ","Settimana 5","Straordinario     "]
[{"$nulls":4},"Lunedì"]
[{"$nulls":4},"Martedì"]
[{"$nulls":4},"Mercoledì"]
[{"$nulls":4},"Giovedì"]
[{"$nulls":4},"Venerdì"]
[{"$nulls":4},"Sabato"]
[{"$nulls":4},"Domenica"]
[{"$nulls":4},"Totale ore settimanali",{"$f":"SUM(F31:F37)","v":{"v":0,"d":"0.0"}},{"v":0,"d":"0.0"},{"v":0,"d":"0.0"},{"v":0,"d":"0.0"},{"v":0,"d":"0.0"},{"v":0,"d":"0.0"},{"v":0,"d":"0.0"},{"v":0,"d":"0.0"},{"v":0,"d":"0.0"},{"v":0,"d":"0.0"}]
[" ",{"$nulls":3},{"$f":"TEXT(DATEVALUE(Marzo[[#Headers],[Marzo]]&\" \"&YEAR(TODAY())),\"mmm.\")&\" totale: Ore normali\"","v":"mar. totale: Ore normali"},{"$f":"SUM(Marzo[Settimana 1],Marzo[Settimana 2],Marzo[Settimana 3],Marzo[Settimana 4],Marzo[Settimana 5])","v":{"v":0,"d":"0.0"}},{"$nulls":5},{"$f":"TEXT(DATEVALUE(Marzo[[#Headers],[Marzo]]&\" \"&YEAR(TODAY())),\"mmm.\")&\" totale: Straordinario\"","v":"mar. totale: Straordinario"},null,{"$f":"SUM(Marzo[Straordinario],Marzo[[Straordinario  ]],Marzo[[Straordinario ]],Marzo[[Straordinario    ]],Marzo[[Straordinario     ]])","v":{"v":0,"d":"0.0"}}]
[" ",{"$nulls":3},"Aprile, maggio, giugno   |   Scheda orario del dipendente: giornaliera, settimanale, mensile, annuale"]
[" ",{"$nulls":3},"Aprile","Settimana 1","Straordinario","Settimana 2","Straordinario  ","Settimana 3","Straordinario   ","Settimana 4","Straordinario    ","Settimana 5","Straordinario     "]
[{"$nulls":4},"Lunedì"]
[{"$nulls":4},"Martedì"]
[{"$nulls":4},"Mercoledì"]
[{"$nulls":4},"Giovedì"]
[{"$nulls":4},"Venerdì"]
[{"$nulls":4},"Sabato"]
[{"$nulls":4},"Domenica"]
[{"$nulls":4},"Totale ore settimanali",{"$f":"SUM(F42:F48)","v":{"v":0,"d":"0.0"}},{"v":0,"d":"0.0"},{"v":0,"d":"0.0"},{"v":0,"d":"0.0"},{"v":0,"d":"0.0"},{"v":0,"d":"0.0"},{"v":0,"d":"0.0"},{"v":0,"d":"0.0"},{"v":0,"d":"0.0"},{"v":0,"d":"0.0"}]
[" ",{"$nulls":3},{"$f":"TEXT(DATEVALUE(Aprile[[#Headers],[Aprile]]&\" \"&YEAR(TODAY())),\"mmm.\")&\" totale: Ore normali\"","v":"apr. totale: Ore normali"},{"$f":"SUM(Aprile[Settimana 1],Aprile[Settimana 2],Aprile[Settimana 3],Aprile[Settimana 4],Aprile[Settimana 5])","v":{"v":0,"d":"0.0"}},{"$nulls":5},{"$f":"TEXT(DATEVALUE(Aprile[[#Headers],[Aprile]]&\" \"&YEAR(TODAY())),\"mmm.\")&\" totale: Straordinario\"","v":"apr. totale: Straordinario"},null,{"$f":"SUM(Aprile[Straordinario],Aprile[[Straordinario  ]],Aprile[[Straordinario   ]],Aprile[[Straordinario    ]],Aprile[[Straordinario     ]])","v":{"v":0,"d":"0.0"}}]
[]
[" ",{"$nulls":3},"Maggio","Settimana 1","Straordinario","Settimana 2","Straordinario  ","Settimana 3","Straordinario   ","Settimana 4","Straordinario    ","Settimana 5","Straordinario     "]
[{"$nulls":4},"Lunedì"]
[{"$nulls":4},"Martedì"]
[{"$nulls":4},"Mercoledì"]
[{"$nulls":4},"Giovedì"]
[{"$nulls":4},"Venerdì"]
[{"$nulls":4},"Sabato"]
[{"$nulls":4},"Domenica"]
[{"$nulls":4},"Totale ore settimanali",{"$f":"SUM(F53:F59)","v":{"v":0,"d":"0.0"}},{"v":0,"d":"0.0"},{"v":0,"d":"0.0"},{"v":0,"d":"0.0"},{"v":0,"d":"0.0"},{"v":0,"d":"0.0"},{"v":0,"d":"0.0"},{"v":0,"d":"0.0"},{"v":0,"d":"0.0"},{"v":0,"d":"0.0"}]
[" ",{"$nulls":3},{"$f":"TEXT(DATEVALUE(Maggio[[#Headers],[Maggio]]&\" \"&YEAR(TODAY())),\"mmm.\")&\" totale: Ore normali\"","v":"mag. totale: Ore normali"},{"$f":"SUM(Maggio[Settimana 1],Maggio[Settimana 2],Maggio[Settimana 3],Maggio[Settimana 4],Maggio[Settimana 5])","v":{"v":0,"d":"0.0"}},{"$nulls":5},{"$f":"TEXT(DATEVALUE(Maggio[[#Headers],[Maggio]]&\" \"&YEAR(TODAY())),\"mmm.\")&\" totale: Straordinario\"","v":"mag. totale: Straordinario"},null,{"$f":"SUM(Maggio[Straordinario],Maggio[[Straordinario  ]],Maggio[[Straordinario   ]],Maggio[[Straordinario    ]],Maggio[[Straordinario     ]])","v":{"v":0,"d":"0.0"}}]
[]
[" ",{"$nulls":3},"Giugno","Settimana 1","Straordinario","Settimana 2","Straordinario  ","Settimana 3","Straordinario   ","Settimana 4","Straordinario    ","Settimana 5","Straordinario     "]
[{"$nulls":4},"Lunedì"]
[{"$nulls":4},"Martedì"]
[{"$nulls":4},"Mercoledì"]
[{"$nulls":4},"Giovedì"]
[{"$nulls":4},"Venerdì"]
[{"$nulls":4},"Sabato"]
[{"$nulls":4},"Domenica"]
[{"$nulls":4},"Totale ore settimanali",{"$f":"SUM(F64:F70)","v":{"v":0,"d":"0.0"}},{"v":0,"d":"0.0"},{"v":0,"d":"0.0"},{"v":0,"d":"0.0"},{"v":0,"d":"0.0"},{"v":0,"d":"0.0"},{"v":0,"d":"0.0"},{"v":0,"d":"0.0"},{"v":0,"d":"0.0"},{"v":0,"d":"0.0"}]
[" ",{"$nulls":3},{"$f":"TEXT(DATEVALUE(Giugno[[#Headers],[Giugno]]&\" \"&YEAR(TODAY())),\"mmm.\")&\" totale: Ore normali\"","v":"giu. totale: Ore normali"},{"$f":"SUM(Giugno[Settimana 1],Giugno[Settimana 2],Giugno[Settimana 3],Giugno[Settimana 4],Giugno[Settimana 5])","v":{"v":0,"d":"0.0"}},{"$nulls":5},{"$f":"TEXT(DATEVALUE(Giugno[[#Headers],[Giugno]]&\" \"&YEAR(TODAY())),\"mmm.\")&\" totale: Straordinario\"","v":"giu. totale: Straordinario"},null,{"$f":"SUM(Giugno[Straordinario],Giugno[[Straordinario  ]],Giugno[[Straordinario   ]],Giugno[[Straordinario    ]],Giugno[[Straordinario     ]])","v":{"v":0,"d":"0.0"}}]
[" ",{"$nulls":3},"Luglio, agosto, settembre   |   Scheda orario del dipendente: giornaliera, settimanale, mensile, annuale"]
[" ",{"$nulls":3},"Luglio","Settimana 1","Straordinario","Settimana 2","Straordinario ","Settimana 3","Straordinario  ","Settimana 4","Straordinario   ","Settimana 5","Straordinario     "]
[{"$nulls":4},"Lunedì"]
[{"$nulls":4},"Martedì"]
[{"$nulls":4},"Mercoledì"]
[{"$nulls":4},"Giovedì"]
[{"$nulls":4},"Venerdì"]
[{"$nulls":4},"Sabato"]
[{"$nulls":4},"Domenica"]
[{"$nulls":4},"Totale ore settimanali",{"$f":"SUM(F75:F81)","v":{"v":0,"d":"0.0"}},{"v":0,"d":"0.0"},{"v":0,"d":"0.0"},{"v":0,"d":"0.0"},{"v":0,"d":"0.0"},{"v":0,"d":"0.0"},{"v":0,"d":"0.0"},{"v":0,"d":"0.0"},{"v":0,"d":"0.0"},{"v":0,"d":"0.0"}]
[" ",{"$nulls":3},{"$f":"TEXT(DATEVALUE(Luglio[[#Headers],[Luglio]]&\" \"&YEAR(TODAY())),\"mmm.\")&\" totale: Ore normali\"","v":"lug. totale: Ore normali"},{"$f":"SUM(Luglio[Settimana 1],Luglio[Settimana 2],Luglio[Settimana 3],Luglio[Settimana 4],Luglio[Settimana 5])","v":{"v":0,"d":"0.0"}},{"$nulls":5},{"$f":"TEXT(DATEVALUE(Luglio[[#Headers],[Luglio]]&\" \"&YEAR(TODAY())),\"mmm.\")&\" totale: Straordinario\"","v":"lug. totale: Straordinario"},null,{"$f":"SUM(Luglio[Straordinario],Luglio[[Straordinario ]],Luglio[[Straordinario  ]],Luglio[[Straordinario   ]],Luglio[[Straordinario     ]])","v":{"v":0,"d":"0.0"}}]
[]
[" ",{"$nulls":3},"Agosto","Settimana 1","Straordinario","Settimana 2","Straordinario ","Settimana 3","Straordinario   ","Settimana 4","Straordinario  ","Settimana 5","Straordinario    "]
[{"$nulls":4},"Lunedì"]
[{"$nulls":4},"Martedì"]
[{"$nulls":4},"Mercoledì"]
[{"$nulls":4},"Giovedì"]
[{"$nulls":4},"Venerdì"]
[{"$nulls":4},"Sabato"]
[{"$nulls":4},"Domenica"]
[{"$nulls":4},"Totale ore settimanali",{"$f":"SUBTOTAL(109,Agosto[Settimana 1])","v":{"v":0,"d":"0.0"}},{"$f":"SUBTOTAL(109,Agosto[Straordinario])","v":{"v":0,"d":"0.0"}},{"$f":"SUBTOTAL(109,Agosto[Settimana 2])","v":{"v":0,"d":"0.0"}},{"$f":"SUBTOTAL(109,Agosto[[Straordinario ]])","v":{"v":0,"d":"0.0"}},{"$f":"SUBTOTAL(109,Agosto[Settimana 3])","v":{"v":0,"d":"0.0"}},{"$f":"SUBTOTAL(109,Agosto[[Straordinario   ]])","v":{"v":0,"d":"0.0"}},{"$f":"SUBTOTAL(109,Agosto[Settimana 4])","v":{"v":0,"d":"0.0"}},{"$f":"SUBTOTAL(109,Agosto[[Straordinario  ]])","v":{"v":0,"d":"0.0"}},{"$f":"SUBTOTAL(109,Agosto[Settimana 5])","v":{"v":0,"d":"0.0"}},{"$f":"SUBTOTAL(109,Agosto[[Straordinario    ]])","v":{"v":0,"d":"0.0"}}]
[" ",{"$nulls":3},{"$f":"TEXT(DATEVALUE(Agosto[[#Headers],[Agosto]]&\" \"&YEAR(TODAY())),\"mmm.\")&\" totale: Ore normali\"","v":"ago. totale: Ore normali"},{"$f":"SUM(Agosto[Settimana 1],Agosto[Settimana 2],Agosto[Settimana 3],Agosto[Settimana 4],Agosto[Settimana 5])","v":{"v":0,"d":"0.0"}},{"$nulls":5},{"$f":"TEXT(DATEVALUE(Agosto[[#Headers],[Agosto]]&\" \"&YEAR(TODAY())),\"mmm.\")&\" totale: Straordinario\"","v":"ago. totale: Straordinario"},null,{"$f":"SUM(Agosto[Straordinario],Agosto[[Straordinario ]],Agosto[[Straordinario   ]],Agosto[[Straordinario  ]],Agosto[[Straordinario    ]])","v":{"v":0,"d":"0.0"}}]
[]
[" ",{"$nulls":3},"Settembre","Settimana 1","Straordinario","Settimana 2","Straordinario ","Settimana 3","Straordinario  ","Settimana 4","Straordinario   ","Settimana 5","Straordinario    "]
[{"$nulls":4},"Lunedì"]
[{"$nulls":4},"Martedì"]
[{"$nulls":4},"Mercoledì"]
[{"$nulls":4},"Giovedì"]
[{"$nulls":4},"Venerdì"]
[{"$nulls":4},"Sabato"]
[{"$nulls":4},"Domenica"]
[{"$nulls":4},"Totale ore settimanali",{"$f":"SUBTOTAL(109,Settembre[Settimana 1])","v":{"v":0,"d":"0.0"}},{"$f":"SUBTOTAL(109,Settembre[Straordinario])","v":{"v":0,"d":"0.0"}},{"$f":"SUBTOTAL(109,Settembre[Settimana 2])","v":{"v":0,"d":"0.0"}},{"$f":"SUBTOTAL(109,Settembre[[Straordinario ]])","v":{"v":0,"d":"0.0"}},{"$f":"SUBTOTAL(109,Settembre[Settimana 3])","v":{"v":0,"d":"0.0"}},{"$f":"SUBTOTAL(109,Settembre[[Straordinario  ]])","v":{"v":0,"d":"0.0"}},{"$f":"SUBTOTAL(109,Settembre[Settimana 4])","v":{"v":0,"d":"0.0"}},{"$f":"SUBTOTAL(109,Settembre[[Straordinario   ]])","v":{"v":0,"d":"0.0"}},{"$f":"SUBTOTAL(109,Settembre[Settimana 5])","v":{"v":0,"d":"0.0"}},{"$f":"SUBTOTAL(109,Settembre[[Straordinario    ]])","v":{"v":0,"d":"0.0"}}]
[" ",{"$nulls":3},{"$f":"TEXT(DATEVALUE(Settembre[[#Headers],[Settembre]]&\" \"&YEAR(TODAY())),\"mmm.\")&\" totale: Ore normali\"","v":"set. totale: Ore normali"},{"$f":"SUM(Settembre[Settimana 1],Settembre[Settimana 2],Settembre[Settimana 3],Settembre[Settimana 4],Settembre[Settimana 5])","v":{"v":0,"d":"0.0"}},{"$nulls":5},{"$f":"TEXT(DATEVALUE(Settembre[[#Headers],[Settembre]]&\" \"&YEAR(TODAY())),\"mmm.\")&\" totale: Straordinario\"","v":"set. totale: Straordinario"},null,{"$f":"SUM(Settembre[Straordinario],Settembre[[Straordinario ]],Settembre[[Straordinario  ]],Settembre[[Straordinario   ]],Settembre[[Straordinario    ]])","v":{"v":0,"d":"0.0"}}]
[" ",{"$nulls":3},"Ottobre, novembre, dicembre   |   Scheda orario del dipendente: giornaliera, settimanale, mensile, annuale"]
[" ",{"$nulls":3},"Ottobre","Settimana 1","Straordinario","Settimana 2","Straordinario ","Settimana 3","Straordinario  ","Settimana 4","Straordinario   ","Settimana 5","Straordinario    "]
[{"$nulls":4},"Lunedì"]
[{"$nulls":4},"Martedì"]
[{"$nulls":4},"Mercoledì"]
[{"$nulls":4},"Giovedì"]
[{"$nulls":4},"Venerdì"]
[{"$nulls":4},"Sabato"]
[{"$nulls":4},"Domenica"]
[{"$nulls":4},"Totale ore settimanali",{"$f":"SUBTOTAL(109,Ottobre[Settimana 1])","v":{"v":0,"d":"0.0"}},{"$f":"SUBTOTAL(109,Ottobre[Straordinario])","v":{"v":0,"d":"0.0"}},{"$f":"SUBTOTAL(109,Ottobre[Settimana 2])","v":{"v":0,"d":"0.0"}},{"$f":"SUBTOTAL(109,Ottobre[[Straordinario ]])","v":{"v":0,"d":"0.0"}},{"$f":"SUBTOTAL(109,Ottobre[Settimana 3])","v":{"v":0,"d":"0.0"}},{"$f":"SUBTOTAL(109,Ottobre[[Straordinario  ]])","v":{"v":0,"d":"0.0"}},{"$f":"SUBTOTAL(109,Ottobre[Settimana 4])","v":{"v":0,"d":"0.0"}},{"$f":"SUBTOTAL(109,Ottobre[[Straordinario   ]])","v":{"v":0,"d":"0.0"}},{"$f":"SUBTOTAL(109,Ottobre[Settimana 5])","v":{"v":0,"d":"0.0"}},{"$f":"SUBTOTAL(109,Ottobre[[Straordinario    ]])","v":{"v":0,"d":"0.0"}}]
[" ",{"$nulls":3},{"$f":"TEXT(DATEVALUE(Ottobre[[#Headers],[Ottobre]]&\" \"&YEAR(TODAY())),\"mmm.\")&\" totale: Ore normali\"","v":"ott. totale: Ore normali"},{"$f":"SUM(Ottobre[Settimana 1],Ottobre[Settimana 2],Ottobre[Settimana 3],Ottobre[Settimana 4],Ottobre[Settimana 5])","v":{"v":0,"d":"0.0"}},{"$nulls":5},{"$f":"TEXT(DATEVALUE(Ottobre[[#Headers],[Ottobre]]&\" \"&YEAR(TODAY())),\"mmm.\")&\" totale: Straordinario\"","v":"ott. totale: Straordinario"},null,{"$f":"SUM(Ottobre[Straordinario],Ottobre[[Straordinario ]],Ottobre[[Straordinario  ]],Ottobre[[Straordinario   ]],Ottobre[[Straordinario    ]])","v":{"v":0,"d":"0.0"}}]
[]
[" ",{"$nulls":3},"Novembre","Settimana 1","Straordinario","Settimana 2","Straordinario ","Settimana 3","Straordinario  ","Settimana 4","Straordinario    ","Settimana 5","Straordinario     "]
[{"$nulls":4},"Lunedì"]
[{"$nulls":4},"Martedì"]
[{"$nulls":4},"Mercoledì"]
[{"$nulls":4},"Giovedì"]
[{"$nulls":4},"Venerdì"]
[{"$nulls":4},"Sabato"]
[{"$nulls":4},"Domenica"]
[{"$nulls":4},"Totale ore settimanali",{"$f":"SUBTOTAL(109,Novembre[Settimana 1])","v":{"v":0,"d":"0.0"}},{"$f":"SUBTOTAL(109,Novembre[Straordinario])","v":{"v":0,"d":"0.0"}},{"$f":"SUBTOTAL(109,Novembre[Settimana 2])","v":{"v":0,"d":"0.0"}},{"$f":"SUBTOTAL(109,Novembre[[Straordinario ]])","v":{"v":0,"d":"0.0"}},{"$f":"SUBTOTAL(109,Novembre[Settimana 3])","v":{"v":0,"d":"0.0"}},{"$f":"SUBTOTAL(109,Novembre[[Straordinario  ]])","v":{"v":0,"d":"0.0"}},{"$f":"SUBTOTAL(109,Novembre[Settimana 4])","v":{"v":0,"d":"0.0"}},{"$f":"SUBTOTAL(109,Novembre[[Straordinario    ]])","v":{"v":0,"d":"0.0"}},{"$f":"SUBTOTAL(109,Novembre[Settimana 5])","v":{"v":0,"d":"0.0"}},{"$f":"SUBTOTAL(109,Novembre[[Straordinario     ]])","v":{"v":0,"d":"0.0"}}]
[" ",{"$nulls":3},{"$f":"TEXT(DATEVALUE(Novembre[[#Headers],[Novembre]]&\" \"&YEAR(TODAY())),\"mmm.\")&\" totale: Ore normali\"","v":"nov. totale: Ore normali"},{"$f":"SUM(Novembre[Settimana 1],Novembre[Settimana 2],Novembre[Settimana 3],Novembre[Settimana 4],Novembre[Settimana 5])","v":{"v":0,"d":"0.0"}},{"$nulls":5},{"$f":"TEXT(DATEVALUE(Novembre[[#Headers],[Novembre]]&\" \"&YEAR(TODAY())),\"mmm.\")&\" totale: Straordinario\"","v":"nov. totale: Straordinario"},null,{"$f":"SUM(Novembre[Straordinario],Novembre[[Straordinario ]],Novembre[[Straordinario  ]],Novembre[[Straordinario    ]],Novembre[[Straordinario     ]])","v":{"v":0,"d":"0.0"}}]
[]
[" ",{"$nulls":3},"Dicembre","Settimana 1","Straordinario","Settimana 2","Straordinario ","Settimana 3","Straordinario  ","Settimana 4","Straordinario   ","Settimana 5","Straordinario    "]
[{"$nulls":4},"Lunedì"]
[{"$nulls":4},"Martedì"]
[{"$nulls":4},"Mercoledì"]
[{"$nulls":4},"Giovedì"]
[{"$nulls":4},"Venerdì"]
[{"$nulls":4},"Sabato"]
[{"$nulls":4},"Domenica"]
[{"$nulls":4},"Totale ore settimanali",{"$f":"SUBTOTAL(109,Dicembre[Settimana 1])","v":{"v":0,"d":"0.0"}},{"$f":"SUBTOTAL(109,Dicembre[Straordinario])","v":{"v":0,"d":"0.0"}},{"$f":"SUBTOTAL(109,Dicembre[Settimana 2])","v":{"v":0,"d":"0.0"}},{"$f":"SUBTOTAL(109,Dicembre[[Straordinario ]])","v":{"v":0,"d":"0.0"}},{"$f":"SUBTOTAL(109,Dicembre[Settimana 3])","v":{"v":0,"d":"0.0"}},{"$f":"SUBTOTAL(109,Dicembre[[Straordinario  ]])","v":{"v":0,"d":"0.0"}},{"$f":"SUBTOTAL(109,Dicembre[Settimana 4])","v":{"v":0,"d":"0.0"}},{"$f":"SUBTOTAL(109,Dicembre[[Straordinario   ]])","v":{"v":0,"d":"0.0"}},{"$f":"SUBTOTAL(109,Dicembre[Settimana 5])","v":{"v":0,"d":"0.0"}},{"$f":"SUBTOTAL(109,Dicembre[[Straordinario    ]])","v":{"v":0,"d":"0.0"}}]
[" ",{"$nulls":3},{"$f":"TEXT(DATEVALUE(Dicembre[[#Headers],[Dicembre]]&\" \"&YEAR(TODAY())),\"mmm.\")&\" totale: Ore normali\"","v":"dic. totale: Ore normali"},{"$f":"SUM(Dicembre[Settimana 1],Dicembre[Settimana 2],Dicembre[Settimana 3],Dicembre[Settimana 4],Dicembre[Settimana 5])","v":{"v":0,"d":"0.0"}},{"$nulls":5},{"$f":"TEXT(DATEVALUE(Dicembre[[#Headers],[Dicembre]]&\" \"&YEAR(TODAY())),\"mmm.\")&\" totale: Straordinario\"","v":"dic. totale: Straordinario"},null,{"$f":"SUM(L130:L136,N130:N136,P130:P136,R130:R136,T130:T136)","v":{"v":0,"d":"0.0"}}]